[Event "*** Titled Tuesday Blitz"]
[Site "Chess.com"]
[Date "2021.04.20"]
[Round "7"]
[White "ukchessbomber"]
[Black "Kildepiotr"]
[Result "1-0"]
[WhiteElo "2531"]
[BlackElo "2634"]
[TimeControl "180+1"]
[EndTime "11:14:13 PDT"]
[Termination "ukchessbomber won by resignation"]

1. Nf3 {[%clk 0:03:00.9]} 1... g6 {[%clk 0:03:00]} 2. g3 {[%clk 0:02:56.6]} 2...
Bg7 {[%clk 0:03:00.4]} 3. Bg2 {[%clk 0:02:57.5]} 3... d5 {[%clk 0:03:00.9]} 4.
O-O {[%clk 0:02:58.4]} 4... Nf6 {[%clk 0:03:01.4]} 5. b3 {[%clk 0:02:58]} 5...
Ne4 {[%clk 0:02:59.4]} 6. d4 {[%clk 0:02:57.5]} 6... O-O {[%clk 0:02:58.9]} 7.
Bb2 {[%clk 0:02:57.6]} 7... c5 {[%clk 0:02:59.1]} 8. Nbd2 {[%clk 0:02:55.7]}
8... Nc6 {[%clk 0:02:59.5]} 9. e3 {[%clk 0:02:54.2]} 9... a5 {[%clk 0:02:57.8]}
10. Nxe4 {[%clk 0:02:48.5]} 10... dxe4 {[%clk 0:02:57.6]} 11. Ne5 {[%clk
0:02:49.1]} 11... cxd4 {[%clk 0:02:54.7]} 12. Nxc6 {[%clk 0:02:46.1]} 12... bxc6
{[%clk 0:02:55.6]} 13. Bxd4 {[%clk 0:02:46.5]} 13... Bxd4 {[%clk 0:02:50.8]} 14.
exd4 {[%clk 0:02:36.6]} 14... f5 {[%clk 0:02:50]} 15. c4 {[%clk 0:02:34.3]}
15... Qd6 {[%clk 0:02:45.4]} 16. Qd2 {[%clk 0:02:27.5]} 16... e5 {[%clk
0:02:41.9]} 17. Rfd1 {[%clk 0:01:58.3]} 17... Rd8 {[%clk 0:02:40.3]} 18. c5
{[%clk 0:01:39.8]} 18... Qe7 {[%clk 0:02:30.1]} 19. Qc3 {[%clk 0:01:34.7]} 19...
exd4 {[%clk 0:02:19.1]} 20. Rxd4 {[%clk 0:01:35.6]} 20... Be6 {[%clk 0:02:15.5]}
21. Rad1 {[%clk 0:01:33.5]} 21... Bd5 {[%clk 0:02:14.8]} 22. Bf1 {[%clk
0:01:32.3]} 22... a4 {[%clk 0:02:09.8]} 23. Bc4 {[%clk 0:01:32]} 23... Qxc5
{[%clk 0:02:01.7]} 24. b4 {[%clk 0:00:57.1]} 24... Qe7 {[%clk 0:01:55]} 25. Rxd5
{[%clk 0:00:55.8]} 25... cxd5 {[%clk 0:01:51.5]} 26. Rxd5 {[%clk 0:00:55]} 1-0

[Event "*** Titled Tuesday Blitz"]
[Site "Chess.com"]
[Date "2021.04.20"]
[Round "7"]
[White "akanga001"]
[Black "misterlamine"]
[Result "0-1"]
[WhiteElo "1990"]
[BlackElo "2249"]
[TimeControl "180+1"]
[EndTime "11:14:24 PDT"]
[Termination "misterlamine won by resignation"]

1. e4 {[%clk 0:03:00.9]} 1... c5 {[%clk 0:02:56.6]} 2. Nc3 {[%clk 0:02:59.6]}
2... d6 {[%clk 0:02:54.6]} 3. d4 {[%clk 0:02:58.1]} 3... cxd4 {[%clk 0:02:48.9]}
4. Qxd4 {[%clk 0:02:58.2]} 4... Nc6 {[%clk 0:02:46.2]} 5. Qd2 {[%clk 0:02:58]}
5... Nf6 {[%clk 0:02:45.5]} 6. b3 {[%clk 0:02:56.7]} 6... g6 {[%clk 0:02:44.8]}
7. Bb2 {[%clk 0:02:56]} 7... Bg7 {[%clk 0:02:45.7]} 8. O-O-O {[%clk 0:02:56.1]}
8... O-O {[%clk 0:02:46.1]} 9. f3 {[%clk 0:02:56.3]} 9... a5 {[%clk 0:02:44.9]}
10. g4 {[%clk 0:02:55.5]} 10... a4 {[%clk 0:02:44]} 11. g5 {[%clk 0:02:56]}
11... a3 {[%clk 0:02:35.3]} 12. Ba1 {[%clk 0:02:54.4]} 12... Nd7 {[%clk
0:02:35]} 13. Nge2 {[%clk 0:02:47.3]} 13... Nde5 {[%clk 0:02:29.6]} 14. f4
{[%clk 0:02:46.9]} 14... Ng4 {[%clk 0:02:23.8]} 15. Ng3 {[%clk 0:02:35.2]} 15...
Qb6 {[%clk 0:02:16.1]} 16. Nd5 {[%clk 0:02:28.8]} 16... Bb2+ {[%clk 0:02:02.8]}
17. Bxb2 {[%clk 0:02:26]} 17... axb2+ {[%clk 0:02:03.7]} 18. Kxb2 {[%clk
0:02:26.4]} 18... Qa7 {[%clk 0:02:02.5]} 19. a4 {[%clk 0:02:24.1]} 19... Nf2
{[%clk 0:01:59.9]} 20. Bb5 {[%clk 0:02:06.6]} 20... Nxh1 {[%clk 0:01:57.8]} 21.
Rxh1 {[%clk 0:02:05.7]} 21... Be6 {[%clk 0:01:54]} 22. Nc7 {[%clk 0:02:00.5]}
22... Rac8 {[%clk 0:01:51]} 23. Nxe6 {[%clk 0:01:59.8]} 23... fxe6 {[%clk
0:01:51.9]} 24. Bxc6 {[%clk 0:01:47.8]} 24... Rxc6 {[%clk 0:01:48.6]} 25. h4
{[%clk 0:01:48.1]} 25... Rfc8 {[%clk 0:01:46.4]} 26. Rc1 {[%clk 0:01:47.1]}
26... b5 {[%clk 0:01:33.2]} 27. axb5 {[%clk 0:01:46.3]} 27... Rc3 {[%clk
0:01:28.6]} 28. Ra1 {[%clk 0:01:44.4]} 28... Qc5 {[%clk 0:01:25.7]} 29. Rc1
{[%clk 0:01:41.9]} 29... Rxg3 {[%clk 0:01:25.3]} 30. f5 {[%clk 0:01:39.6]} 30...
Qe5+ {[%clk 0:01:22.6]} 31. Kb1 {[%clk 0:01:38.3]} 31... Ra8 {[%clk 0:01:22.4]}
32. c3 {[%clk 0:01:38.2]} 32... Qxe4+ {[%clk 0:01:19.9]} 33. Kb2 {[%clk
0:01:37.6]} 33... Qxf5 {[%clk 0:01:18.8]} 34. Rc2 {[%clk 0:01:36.9]} 34... Qc5
{[%clk 0:01:16.2]} 0-1

[Event "*** Titled Tuesday Blitz"]
[Site "Chess.com"]
[Date "2021.04.20"]
[Round "7"]
[White "ferch1ni"]
[Black "politeplayer"]
[Result "0-1"]
[WhiteElo "2402"]
[BlackElo "2253"]
[TimeControl "180+1"]
[EndTime "11:14:34 PDT"]
[Termination "politeplayer won by resignation"]

1. e4 {[%clk 0:02:12.4]} 1... e6 {[%clk 0:02:58.6]} 2. Nf3 {[%clk 0:02:12.6]}
2... d5 {[%clk 0:02:58.7]} 3. exd5 {[%clk 0:02:13.5]} 3... exd5 {[%clk
0:02:58.4]} 4. d4 {[%clk 0:02:14.2]} 4... Bd6 {[%clk 0:02:57.5]} 5. Be2 {[%clk
0:02:14.6]} 5... Nf6 {[%clk 0:02:55]} 6. O-O {[%clk 0:02:15.5]} 6... h6 {[%clk
0:02:52.9]} 7. c4 {[%clk 0:02:16.1]} 7... dxc4 {[%clk 0:02:48.8]} 8. Bxc4 {[%clk
0:02:15.2]} 8... O-O {[%clk 0:02:47]} 9. Nbd2 {[%clk 0:02:15.1]} 9... Bg4 {[%clk
0:02:46]} 10. h3 {[%clk 0:02:15.3]} 10... Bh5 {[%clk 0:02:46]} 11. Qb3 {[%clk
0:02:12.8]} 11... Nbd7 {[%clk 0:02:35.7]} 12. Qxb7 {[%clk 0:02:08.7]} 12... Nb6
{[%clk 0:02:30.3]} 13. Bb3 {[%clk 0:02:06.9]} 13... a5 {[%clk 0:02:22.5]} 14. a3
{[%clk 0:02:04.2]} 14... a4 {[%clk 0:02:16.8]} 15. Ba2 {[%clk 0:02:03.5]} 15...
Qd7 {[%clk 0:02:08.7]} 16. Ne5 {[%clk 0:01:26.9]} 16... Bxe5 {[%clk 0:02:05.1]}
17. dxe5 {[%clk 0:01:27.2]} 17... Rfb8 {[%clk 0:02:03.9]} 18. Qxb8+ {[%clk
0:00:42.2]} 18... Rxb8 {[%clk 0:02:03.3]} 19. exf6 {[%clk 0:00:42.7]} 19... gxf6
{[%clk 0:02:03.7]} 20. Ne4 {[%clk 0:00:42.8]} 20... Kg7 {[%clk 0:02:03.3]} 21.
Be3 {[%clk 0:00:30.8]} 21... Re8 {[%clk 0:02:00.2]} 22. Nc5 {[%clk 0:00:28.6]}
22... Qf5 {[%clk 0:01:54.2]} 23. g4 {[%clk 0:00:20.8]} 23... Bxg4 {[%clk
0:01:51.2]} 24. hxg4 {[%clk 0:00:20.8]} 24... Qxg4+ {[%clk 0:01:51.2]} 25. Kh2
{[%clk 0:00:21.5]} 25... Re5 {[%clk 0:01:44]} 26. Rg1 {[%clk 0:00:17.1]} 0-1

[Event "*** Titled Tuesday Blitz"]
[Site "Chess.com"]
[Date "2021.04.20"]
[Round "7"]
[White "JelenaKarleusa-SO-18"]
[Black "AniJak"]
[Result "1-0"]
[WhiteElo "2660"]
[BlackElo "2278"]
[TimeControl "180+1"]
[EndTime "11:14:35 PDT"]
[Termination "JelenaKarleusa-SO-18 won by resignation"]

1. d4 {[%clk 0:03:00.9]} 1... d5 {[%clk 0:02:59.4]} 2. Nf3 {[%clk 0:02:58.3]}
2... Nf6 {[%clk 0:02:58.4]} 3. Bf4 {[%clk 0:02:58.4]} 3... e6 {[%clk 0:02:57.4]}
4. e3 {[%clk 0:02:58.2]} 4... Bd6 {[%clk 0:02:57.2]} 5. Bg3 {[%clk 0:02:58.5]}
5... O-O {[%clk 0:02:54.5]} 6. Bd3 {[%clk 0:02:57.1]} 6... c5 {[%clk 0:02:53.3]}
7. Ne5 {[%clk 0:02:56.6]} 7... Nc6 {[%clk 0:02:50.2]} 8. c3 {[%clk 0:02:52.1]}
8... cxd4 {[%clk 0:02:44.3]} 9. exd4 {[%clk 0:02:51.5]} 9... Qb6 {[%clk
0:02:28.8]} 10. Nxc6 {[%clk 0:02:42.7]} 10... Qxc6 {[%clk 0:02:22.4]} 11. Nd2
{[%clk 0:02:40.3]} 11... Bd7 {[%clk 0:02:14.3]} 12. Qe2 {[%clk 0:02:36.7]} 12...
a6 {[%clk 0:02:06]} 13. Nf3 {[%clk 0:02:32.5]} 13... b5 {[%clk 0:01:48.1]} 14.
Ne5 {[%clk 0:02:30.9]} 14... Bxe5 {[%clk 0:01:44.7]} 15. Bxe5 {[%clk 0:02:30.7]}
15... Ne4 {[%clk 0:01:36.4]} 16. f3 {[%clk 0:02:18.7]} 16... Nd6 {[%clk
0:01:34.7]} 17. O-O {[%clk 0:02:14.5]} 17... Rac8 {[%clk 0:01:26.3]} 18. Rae1
{[%clk 0:02:12.3]} 18... Rfe8 {[%clk 0:01:18.7]} 19. Qd2 {[%clk 0:02:08.8]}
19... f6 {[%clk 0:01:14.5]} 20. Bg3 {[%clk 0:02:00.4]} 20... Nc4 {[%clk
0:01:10.5]} 21. Qc1 {[%clk 0:01:56.5]} 21... Nd6 {[%clk 0:00:49.7]} 22. h4
{[%clk 0:01:52.5]} 22... b4 {[%clk 0:00:44.4]} 23. cxb4 {[%clk 0:01:48]} 23...
Qb6 {[%clk 0:00:43.8]} 24. Qd2 {[%clk 0:01:48]} 24... Qxd4+ {[%clk 0:00:37.8]}
25. Bf2 {[%clk 0:01:48.1]} 1-0

[Event "*** Titled Tuesday Blitz"]
[Site "Chess.com"]
[Date "2021.04.20"]
[Round "7"]
[White "platy3"]
[Black "RzayevB"]
[Result "1-0"]
[WhiteElo "2843"]
[BlackElo "2621"]
[TimeControl "180+1"]
[EndTime "11:14:42 PDT"]
[Termination "platy3 won by resignation"]

1. e4 {[%clk 0:03:00.9]} 1... c5 {[%clk 0:02:43.2]} 2. Nf3 {[%clk 0:02:59.1]}
2... a6 {[%clk 0:02:39.5]} 3. Nc3 {[%clk 0:02:57.1]} 3... b5 {[%clk 0:02:38.6]}
4. d4 {[%clk 0:02:56]} 4... cxd4 {[%clk 0:02:39.5]} 5. Nxd4 {[%clk 0:02:56.6]}
5... Bb7 {[%clk 0:02:39.9]} 6. Bd3 {[%clk 0:02:54.4]} 6... Nc6 {[%clk 0:02:40]}
7. Nxc6 {[%clk 0:02:51.2]} 7... Bxc6 {[%clk 0:02:40.9]} 8. O-O {[%clk
0:02:51.3]} 8... e6 {[%clk 0:02:38.9]} 9. Qe2 {[%clk 0:02:50.9]} 9... d6 {[%clk
0:02:27.8]} 10. a4 {[%clk 0:02:35.3]} 10... b4 {[%clk 0:02:23.7]} 11. Nd5 {[%clk
0:02:35]} 11... a5 {[%clk 0:02:13.9]} 12. Bb5 {[%clk 0:02:11.6]} 12... Rc8
{[%clk 0:01:59.3]} 13. Be3 {[%clk 0:01:43.5]} 13... exd5 {[%clk 0:01:42.5]} 14.
Bxc6+ {[%clk 0:01:41.5]} 14... Rxc6 {[%clk 0:01:39]} 15. exd5 {[%clk 0:01:42.4]}
15... Rc7 {[%clk 0:01:36.9]} 16. Bb6+ {[%clk 0:01:33.8]} 16... Be7 {[%clk
0:01:31.4]} 17. Qb5+ {[%clk 0:01:29.4]} 17... Kf8 {[%clk 0:01:28.9]} 18. Qxa5
{[%clk 0:01:27]} 18... Nf6 {[%clk 0:00:58.7]} 19. Bxc7 {[%clk 0:01:26.1]} 19...
Qc8 {[%clk 0:00:58.3]} 20. Bb6 {[%clk 0:01:24.9]} 20... Qb7 {[%clk 0:00:56.2]}
21. Rfd1 {[%clk 0:01:18.5]} 21... h5 {[%clk 0:00:47.9]} 22. Bd4 {[%clk
0:01:17.2]} 22... Nxd5 {[%clk 0:00:44.3]} 23. Qxd5 {[%clk 0:01:12.8]} 23... Qxd5
{[%clk 0:00:44.6]} 24. Bxg7+ {[%clk 0:01:13.5]} 24... Kxg7 {[%clk 0:00:45]} 25.
Rxd5 {[%clk 0:01:14.4]} 25... Rc8 {[%clk 0:00:44.8]} 26. a5 {[%clk 0:01:12.7]}
1-0

[Event "*** Titled Tuesday Blitz"]
[Site "Chess.com"]
[Date "2021.04.20"]
[Round "7"]
[White "kuba2006"]
[Black "RamyresCoelho"]
[Result "1-0"]
[WhiteElo "2336"]
[BlackElo "2207"]
[TimeControl "180+1"]
[EndTime "11:14:47 PDT"]
[Termination "kuba2006 won by checkmate"]

1. b3 {[%clk 0:02:58.1]} 1... e5 {[%clk 0:02:58.9]} 2. Bb2 {[%clk 0:02:56.4]}
2... d6 {[%clk 0:02:59.2]} 3. e3 {[%clk 0:02:51.8]} 3... Ne7 {[%clk 0:02:58.6]}
4. Nf3 {[%clk 0:02:47.9]} 4... g6 {[%clk 0:02:58.2]} 5. d4 {[%clk 0:02:43.5]}
5... f6 {[%clk 0:02:47.9]} 6. dxe5 {[%clk 0:02:39.8]} 6... fxe5 {[%clk
0:02:46.6]} 7. Bc4 {[%clk 0:02:15.8]} 7... Bg7 {[%clk 0:02:41.3]} 8. O-O {[%clk
0:02:14.6]} 8... d5 {[%clk 0:02:38.2]} 9. Bxe5 {[%clk 0:01:36.8]} 9... Bxe5
{[%clk 0:02:35.1]} 10. Nxe5 {[%clk 0:01:37.7]} 10... Qd6 {[%clk 0:02:18.2]} 11.
Bb5+ {[%clk 0:01:33.1]} 11... c6 {[%clk 0:02:17.9]} 12. Qd4 {[%clk 0:01:31.1]}
12... cxb5 {[%clk 0:02:12]} 13. Nc4 {[%clk 0:01:10.8]} 13... bxc4 {[%clk
0:02:07.8]} 14. Qxh8+ {[%clk 0:01:10.4]} 14... Kd7 {[%clk 0:02:08]} 15. bxc4
{[%clk 0:01:10.2]} 15... b6 {[%clk 0:01:47.3]} 16. Nc3 {[%clk 0:01:05.5]} 16...
Bb7 {[%clk 0:01:42.7]} 17. Rad1 {[%clk 0:01:04.3]} 17... Nbc6 {[%clk 0:01:40.4]}
18. Qxh7 {[%clk 0:01:02.6]} 18... Ne5 {[%clk 0:01:28.6]} 19. Nxd5 {[%clk
0:00:57.3]} 19... Ke6 {[%clk 0:01:11.3]} 20. Nf4+ {[%clk 0:00:54]} 20... Kd7
{[%clk 0:01:10.2]} 21. Rxd6+ {[%clk 0:00:53.7]} 21... Kxd6 {[%clk 0:01:11.1]}
22. Rd1+ {[%clk 0:00:54]} 22... Kc6 {[%clk 0:01:01.6]} 23. Qxe7 {[%clk
0:00:52.5]} 23... Nxc4 {[%clk 0:00:59.4]} 24. Qd7+ {[%clk 0:00:47.2]} 24... Kc5
{[%clk 0:00:57.8]} 25. Nd3# {[%clk 0:00:47.1]} 1-0

[Event "*** Titled Tuesday Blitz"]
[Site "Chess.com"]
[Date "2021.04.20"]
[Round "7"]
[White "zubridis"]
[Black "olksuna"]
[Result "1-0"]
[WhiteElo "2545"]
[BlackElo "2646"]
[TimeControl "180+1"]
[EndTime "11:14:53 PDT"]
[Termination "zubridis won by resignation"]

1. e4 {[%clk 0:03:00.9]} 1... e6 {[%clk 0:02:59.6]} 2. d4 {[%clk 0:02:59.9]}
2... d5 {[%clk 0:02:59.7]} 3. Nd2 {[%clk 0:02:59.8]} 3... Nf6 {[%clk 0:02:57.5]}
4. e5 {[%clk 0:02:58.6]} 4... Nfd7 {[%clk 0:02:58.1]} 5. c3 {[%clk 0:02:58.8]}
5... c5 {[%clk 0:02:57.3]} 6. f4 {[%clk 0:02:59.7]} 6... b6 {[%clk 0:02:57]} 7.
Bb5 {[%clk 0:02:57]} 7... Ba6 {[%clk 0:02:55.9]} 8. a4 {[%clk 0:02:56.1]} 8...
Be7 {[%clk 0:02:49.7]} 9. Ne2 {[%clk 0:02:51.2]} 9... O-O {[%clk 0:02:47.3]} 10.
O-O {[%clk 0:02:49.6]} 10... f5 {[%clk 0:02:44.2]} 11. Kh1 {[%clk 0:02:45.6]}
11... Rf7 {[%clk 0:02:10.8]} 12. Rg1 {[%clk 0:02:43.3]} 12... Nf8 {[%clk
0:02:05.7]} 13. Nf3 {[%clk 0:02:41.8]} 13... Bxb5 {[%clk 0:01:57.5]} 14. axb5
{[%clk 0:02:40.4]} 14... Qe8 {[%clk 0:01:58]} 15. c4 {[%clk 0:02:24.5]} 15...
cxd4 {[%clk 0:01:24.5]} 16. cxd5 {[%clk 0:02:22]} 16... exd5 {[%clk 0:01:20.5]}
17. Nfxd4 {[%clk 0:02:20.7]} 17... Bc5 {[%clk 0:01:16.8]} 18. Nc3 {[%clk
0:02:19]} 18... Bxd4 {[%clk 0:01:09.7]} 19. Qxd4 {[%clk 0:02:17.6]} 19... Rd7
{[%clk 0:01:09.9]} 20. Nxd5 {[%clk 0:02:07.1]} 20... Ne6 {[%clk 0:00:57.6]} 21.
Qc4 {[%clk 0:02:06.6]} 21... Kh8 {[%clk 0:00:56.1]} 22. Nxb6 {[%clk 0:02:04.9]}
22... Rd4 {[%clk 0:00:39.8]} 23. Qc2 {[%clk 0:02:01.8]} 23... Nd7 {[%clk
0:00:32.9]} 24. Nxa8 {[%clk 0:02:00.5]} 24... Qxa8 {[%clk 0:00:33.8]} 25. Qxf5
{[%clk 0:01:59.1]} 25... Ndf8 {[%clk 0:00:21.1]} 26. Be3 {[%clk 0:01:58.7]}
26... Rb4 {[%clk 0:00:17.4]} 27. Rxa7 {[%clk 0:01:55.9]} 27... Qe8 {[%clk
0:00:17.8]} 28. b6 {[%clk 0:01:53.6]} 28... Rxb2 {[%clk 0:00:15.7]} 29. b7
{[%clk 0:01:46]} 29... Qe7 {[%clk 0:00:10.7]} 30. b8=Q {[%clk 0:01:42.7]} 1-0

[Event "*** Titled Tuesday Blitz"]
[Site "Chess.com"]
[Date "2021.04.20"]
[Round "7"]
[White "vugarrasulov"]
[Black "Korchmar_Vasiliy"]
[Result "1-0"]
[WhiteElo "2844"]
[BlackElo "2651"]
[TimeControl "180+1"]
[EndTime "11:15:06 PDT"]
[Termination "vugarrasulov won on time"]

1. d4 {[%clk 0:03:00.9]} 1... Nf6 {[%clk 0:02:59.3]} 2. c4 {[%clk 0:03:00.9]}
2... c6 {[%clk 0:02:59.4]} 3. Nf3 {[%clk 0:02:59.6]} 3... d5 {[%clk 0:02:59.7]}
4. Nc3 {[%clk 0:03:00.2]} 4... a6 {[%clk 0:02:59.6]} 5. cxd5 {[%clk 0:02:57.4]}
5... cxd5 {[%clk 0:03:00]} 6. Bf4 {[%clk 0:02:57.9]} 6... Nc6 {[%clk 0:02:59.8]}
7. e3 {[%clk 0:02:58.4]} 7... e6 {[%clk 0:02:54]} 8. Bd3 {[%clk 0:02:58.1]} 8...
Be7 {[%clk 0:02:54.2]} 9. O-O {[%clk 0:02:57.7]} 9... O-O {[%clk 0:02:54.5]} 10.
h3 {[%clk 0:02:55.7]} 10... b5 {[%clk 0:02:53.6]} 11. Rc1 {[%clk 0:02:53.8]}
11... Bb7 {[%clk 0:02:53.6]} 12. a4 {[%clk 0:02:44.3]} 12... b4 {[%clk
0:02:52.3]} 13. Nb1 {[%clk 0:02:44.8]} 13... Ne4 {[%clk 0:02:47.4]} 14. Nbd2
{[%clk 0:02:39.9]} 14... f5 {[%clk 0:02:34]} 15. Ne5 {[%clk 0:02:38.5]} 15...
Nxe5 {[%clk 0:02:29.2]} 16. Bxe5 {[%clk 0:02:39.4]} 16... Nxd2 {[%clk
0:02:09.4]} 17. Qxd2 {[%clk 0:02:38.7]} 17... Bd6 {[%clk 0:02:09.9]} 18. Bxd6
{[%clk 0:02:37.2]} 18... Qxd6 {[%clk 0:02:10.8]} 19. Rc5 {[%clk 0:02:37.6]}
19... a5 {[%clk 0:01:57.4]} 20. f4 {[%clk 0:02:34.9]} 20... Ba6 {[%clk
0:01:22.4]} 21. Rfc1 {[%clk 0:02:30.5]} 21... Bxd3 {[%clk 0:01:21.7]} 22. Qxd3
{[%clk 0:02:31.4]} 22... Rf7 {[%clk 0:01:01]} 23. Qb5 {[%clk 0:02:19.3]} 23...
g5 {[%clk 0:00:52.9]} 24. Rc6 {[%clk 0:01:57]} 24... Qe7 {[%clk 0:00:43.7]} 25.
Rc8+ {[%clk 0:01:52.3]} 25... Rxc8 {[%clk 0:00:37.1]} 26. Rxc8+ {[%clk
0:01:53.2]} 26... Rf8 {[%clk 0:00:24.5]} 27. Rxf8+ {[%clk 0:01:51.7]} 27... Kxf8
{[%clk 0:00:24.2]} 28. Qxa5 {[%clk 0:01:48.3]} 28... gxf4 {[%clk 0:00:22]} 29.
exf4 {[%clk 0:01:49.2]} 29... Kg7 {[%clk 0:00:04.6]} 30. Qc5 {[%clk 0:01:41]}
1-0

[Event "*** Titled Tuesday Blitz"]
[Site "Chess.com"]
[Date "2021.04.20"]
[Round "7"]
[White "quizden37"]
[Black "Sashadav97"]
[Result "0-1"]
[WhiteElo "2783"]
[BlackElo "2633"]
[TimeControl "180+1"]
[EndTime "11:15:09 PDT"]
[Termination "Sashadav97 won by resignation"]

1. e4 {[%clk 0:03:00.9]} 1... c5 {[%clk 0:02:19.3]} 2. Nf3 {[%clk 0:02:58.6]}
2... e6 {[%clk 0:02:19.8]} 3. d4 {[%clk 0:02:58]} 3... cxd4 {[%clk 0:02:20.7]}
4. c3 {[%clk 0:02:58.3]} 4... Nf6 {[%clk 0:02:20.6]} 5. e5 {[%clk 0:02:57.3]}
5... Nd5 {[%clk 0:02:21]} 6. Bc4 {[%clk 0:02:56.2]} 6... d6 {[%clk 0:02:21.1]}
7. Bxd5 {[%clk 0:02:55.4]} 7... exd5 {[%clk 0:02:22]} 8. exd6 {[%clk 0:02:50.8]}
8... Bxd6 {[%clk 0:02:18.9]} 9. Qxd4 {[%clk 0:02:50.9]} 9... O-O {[%clk
0:02:18.3]} 10. O-O {[%clk 0:02:50.8]} 10... Nc6 {[%clk 0:02:17.8]} 11. Qd1
{[%clk 0:02:50.9]} 11... Bg4 {[%clk 0:02:15]} 12. h3 {[%clk 0:02:51.1]} 12...
Bh5 {[%clk 0:02:15.2]} 13. Nbd2 {[%clk 0:02:49.6]} 13... Re8 {[%clk 0:02:10.5]}
14. Qb3 {[%clk 0:02:49.2]} 14... Qd7 {[%clk 0:02:09.5]} 15. Kh1 {[%clk
0:02:42.1]} 15... Bc5 {[%clk 0:01:54]} 16. Qb5 {[%clk 0:02:32.1]} 16... Bb6
{[%clk 0:01:53.4]} 17. a4 {[%clk 0:02:31.9]} 17... Rab8 {[%clk 0:01:31.9]} 18.
a5 {[%clk 0:02:31]} 18... Bc7 {[%clk 0:01:32.1]} 19. c4 {[%clk 0:02:28.7]} 19...
Bxf3 {[%clk 0:01:19.8]} 20. Nxf3 {[%clk 0:02:28.4]} 20... d4 {[%clk 0:01:20]}
21. Bd2 {[%clk 0:02:21.4]} 21... a6 {[%clk 0:01:19.9]} 22. Qd5 {[%clk
0:02:20.8]} 22... Rbd8 {[%clk 0:01:19.8]} 23. Qxd7 {[%clk 0:02:20.5]} 23... Rxd7
{[%clk 0:01:20.7]} 24. b4 {[%clk 0:02:21.4]} 24... f6 {[%clk 0:01:09.4]} 25. b5
{[%clk 0:02:21.2]} 25... Ne5 {[%clk 0:01:09.6]} 26. Nxe5 {[%clk 0:02:19.5]}
26... Rxe5 {[%clk 0:01:08]} 27. Rfe1 {[%clk 0:02:18.6]} 27... d3 {[%clk
0:01:07.6]} 28. f4 {[%clk 0:02:13.4]} 28... Rxe1+ {[%clk 0:01:02.5]} 29. Rxe1
{[%clk 0:02:14.3]} 29... Kf7 {[%clk 0:01:03.3]} 30. Kg1 {[%clk 0:02:09.7]} 30...
Rd4 {[%clk 0:00:57]} 31. bxa6 {[%clk 0:02:02.3]} 31... bxa6 {[%clk 0:00:56.9]}
32. Rd1 {[%clk 0:01:48.7]} 32... Rxc4 {[%clk 0:00:53.6]} 33. Rb1 {[%clk
0:01:48.8]} 33... Rc2 {[%clk 0:00:48.4]} 34. Be3 {[%clk 0:01:49.1]} 34... Bxa5
{[%clk 0:00:47.1]} 35. Ra1 {[%clk 0:01:49.4]} 35... Bc3 {[%clk 0:00:41]} 36.
Rxa6 {[%clk 0:01:38.5]} 36... d2 {[%clk 0:00:41.3]} 37. Ra7+ {[%clk 0:01:38.8]}
37... Kg6 {[%clk 0:00:41.2]} 0-1

[Event "*** Titled Tuesday Blitz"]
[Site "Chess.com"]
[Date "2021.04.20"]
[Round "7"]
[White "kleopl"]
[Black "bilelou"]
[Result "0-1"]
[WhiteElo "2497"]
[BlackElo "2625"]
[TimeControl "180+1"]
[EndTime "11:15:12 PDT"]
[Termination "bilelou won by resignation"]

1. c4 {[%clk 0:03:00.9]} 1... e5 {[%clk 0:02:57.2]} 2. Nc3 {[%clk 0:03:00.9]}
2... Nf6 {[%clk 0:02:55]} 3. Nf3 {[%clk 0:03:00.7]} 3... Nc6 {[%clk 0:02:53.2]}
4. e4 {[%clk 0:03:00.8]} 4... g6 {[%clk 0:02:49]} 5. d4 {[%clk 0:02:49.7]} 5...
exd4 {[%clk 0:02:49.9]} 6. Nxd4 {[%clk 0:02:50]} 6... Bg7 {[%clk 0:02:48.5]} 7.
Nxc6 {[%clk 0:02:48.6]} 7... bxc6 {[%clk 0:02:38.3]} 8. Bd3 {[%clk 0:02:48.5]}
8... O-O {[%clk 0:02:36]} 9. O-O {[%clk 0:02:48.3]} 9... d6 {[%clk 0:02:36.5]}
10. h3 {[%clk 0:02:40.9]} 10... Be6 {[%clk 0:02:35.8]} 11. Rb1 {[%clk 0:02:39]}
11... Nd7 {[%clk 0:02:30.4]} 12. Qc2 {[%clk 0:02:38.7]} 12... Nc5 {[%clk
0:02:21.8]} 13. b3 {[%clk 0:02:37.9]} 13... a5 {[%clk 0:02:19.2]} 14. Be3 {[%clk
0:02:36.3]} 14... Qh4 {[%clk 0:02:05.2]} 15. Rbd1 {[%clk 0:02:25.3]} 15... Rfe8
{[%clk 0:02:01.4]} 16. Ne2 {[%clk 0:02:10.2]} 16... Bc8 {[%clk 0:01:54.3]} 17.
f3 {[%clk 0:01:43.8]} 17... a4 {[%clk 0:01:51]} 18. b4 {[%clk 0:01:38.8]} 18...
Nxd3 {[%clk 0:01:48.6]} 19. Rxd3 {[%clk 0:01:30.8]} 19... f5 {[%clk 0:01:49.1]}
20. Bd4 {[%clk 0:00:58.2]} 20... fxe4 {[%clk 0:01:48.5]} 21. fxe4 {[%clk
0:00:57.5]} 21... Bh6 {[%clk 0:01:42.5]} 22. Nc3 {[%clk 0:00:35.6]} 22... Be6
{[%clk 0:01:38.5]} 23. c5 {[%clk 0:00:33.9]} 23... Bc4 {[%clk 0:01:36.9]} 24.
Bf6 {[%clk 0:00:25.9]} 24... Bg5 {[%clk 0:01:14.6]} 25. Bxg5 {[%clk 0:00:22.5]}
25... Qxg5 {[%clk 0:01:15.5]} 26. cxd6 {[%clk 0:00:22.6]} 26... cxd6 {[%clk
0:01:09.9]} 27. Rxd6 {[%clk 0:00:20.8]} 27... Bxf1 {[%clk 0:01:05.9]} 28. Kxf1
{[%clk 0:00:20.9]} 28... Qf4+ {[%clk 0:01:06.1]} 0-1